bitfinex/quotes_SOLUSD_20250717
["timestamp","ask_amount","ask_price","bid_price","bid_amount"]
[1752761860260,12.24927076,174.06,174.02,0.71]
[1752761860261,17.35765136,174.05,174.02,0.71]
[1752761860464,15.79807096,174.06,174.02,0.71]
[1752761860465,16.37103835,174.06,174.02,0.71]
[1752761860665,5.74517076,174.06,174.03,31.27]
[1752761861278,15.79807096,174.06,174.03,30.56]
[1752761861473,26.83758417,174.04,174.03,30.56]
[1752761861881,32.58338973,174.04,174.03,30.56]
[1752761862181,32.58338973,174.04,174.0,1e-08]
[1752761862390,10.0529002,174.03,174.0,1e-08]
[1752761862691,32.58338973,174.04,174.0,1e-08]
[1752761862885,10.0529002,174.05,174.01,0.71]
[1752761863083,10.0529002,174.05,174.02,26.71]
[1752761863272,15.79846721,174.05,174.03,30.54]
[1752761863892,10.0529002,174.07,174.04,0.71]
[1752761864064,5.74460727,174.08,174.04,0.71]
[1752761864265,15.79750747,174.08,174.05,0.71]
[1752761865768,10.0529002,174.08,174.05,0.71]
[1752761866008,15.7966509,174.11,174.06,0.71]
[1752761866163,14.357674,174.13,174.05,10.0529002]
[1752761866164,10.0529002,174.13,174.08,10.0529002]
[1752761866490,10.0529002,174.13,174.09,0.71]
[1752761867393,15.79606583,174.12,174.07,40.5929002]
[1752761867582,15.79606583,174.12,174.08,0.71]
[1752761868497,10.0529002,174.1,174.07,30.54]
[1752761868667,10.0529002,174.09,174.07,30.54]
[1752761869069,10.0529002,174.08,174.07,30.54]
[1752761869272,15.79738549,174.08,174.07,30.54]
[1752761872098,15.79738549,174.08,174.05,26.0]
[1752761872280,15.79738549,174.08,174.05,56.54]
[1752761872508,5.74328173,174.12,174.06,10.7629002]
[1752761872696,15.79583418,174.13,174.07,10.7629002]
[1752761872887,15.79583418,174.13,174.08,30.54]
[1752761873201,15.79583418,174.13,174.09,0.71]
[1752761873404,10.0529002,174.14,174.1,0.71]
[1752761873582,26.83758417,174.15,174.11,30.54]
[1752761873781,26.83758417,174.15,174.11,31.25]
[1752761873978,10.0529002,174.14,174.11,31.25]
[1752761874378,10.62586759,174.14,174.11,30.54]
[1752761874779,10.0529002,174.13,174.11,30.54]
[1752761874975,27.41055156,174.12,174.11,30.54]
[1752761875200,16.78468397,174.11,174.08,30.52]
[1752761875403,10.0529002,174.09,174.03,0.77]
[1752761875588,10.0529002,174.07,174.05,30.52]
[1752761875785,10.0529002,174.06,174.05,30.52]
[1752761876180,16.78468397,174.05,174.03,0.06]
[1752761876375,27.41055156,174.04,174.03,0.06]
[1752761877704,10.0529002,174.04,174.03,0.06]
[1752761878076,15.79870576,174.04,174.03,0.06]
[1752761878385,17.35765136,174.05,174.03,0.06]
[1752761878386,23.10317569,174.05,174.03,0.06]
[1752761878597,32.5831085,174.05,174.03,0.06]
[1752761879213,26.83758417,174.05,174.03,0.06]
[1752761879410,10.0529002,174.04,174.03,0.06]
[1752761880284,15.79870576,174.04,174.03,0.06]
[1752761881809,23.10345692,174.04,174.03,0.06]
[1752761881988,33.76635712,174.04,174.03,0.06]
[1752761882584,23.10345692,174.04,174.03,0.06]
[1752761882782,33.15635712,174.04,174.03,0.06]
[1752761883212,32.58338973,174.04,174.03,0.06]
[1752761883989,33.19338973,174.04,174.03,0.06]
[1752761884512,32.58338973,174.04,174.03,0.06]
[1752761885613,33.19338973,174.04,174.03,0.06]
[1752761887200,63.71338973,174.04,174.03,0.06]
[1752761887583,63.71338973,174.04,174.03,1e-08]
[1752761888018,26.83758417,174.01,174.0,1e-08]
[1752761888215,18.35718397,173.99,173.98,1e-08]
[1752761888419,16.78468397,173.98,173.92,0.06]
[1752761888589,63.67866905,173.97,173.92,0.06]
[1752761888788,64.28866905,173.97,173.92,0.06]
[1752761889205,64.28866905,173.97,173.96,1e-08]
[1752761889790,63.67866905,173.97,173.96,1e-08]
[1752761890000,53.62576885,173.97,173.96,1e-08]
[1752761890204,27.41055156,173.97,173.96,1e-08]
[1752761890412,16.78468397,173.97,173.96,0.70000001]
[1752761890709,6.32034387,174.0,173.96,0.70000001]
[1752761890902,16.37324407,174.0,173.97,0.7]
[1752761891089,16.78468397,174.0,173.98,0.7]
[1752761891412,26.83758417,174.0,173.96,0.70000001]
[1752761891601,26.83758417,174.0,173.97,0.7]
[1752761892434,10.0529002,173.98,173.96,1e-08]
[1752761892594,23.10576885,173.97,173.96,1e-08]
[1752761892787,33.15866905,173.97,173.96,1e-08]
[1752761893606,32.58570166,173.97,173.96,1e-08]
[1752761893807,32.58570166,173.97,173.96,0.70000001]
[1752761894011,26.83758417,173.97,173.96,1e-08]
[1752761894218,16.78468397,173.97,173.96,1e-08]
[1752761894545,10.0529002,173.99,173.96,0.70000001]
[1752761894821,27.41055156,174.0,173.97,0.7]
[1752761895003,26.83758417,174.0,173.97,26.7]
[1752761895326,0.57296739,174.02,173.97,26.7]
[1752761895327,10.62586759,174.02,173.98,0.7]
[1752761895496,16.37240684,174.02,173.99,0.7]
[1752761895895,27.44055156,174.04,174.0,0.7]
[1752761896108,10.0529002,174.03,174.0,0.7]
[1752761896302,33.18645609,174.04,174.01,0.7]
[1752761896505,15.82880473,174.04,174.01,0.7]
[1752761896712,15.82873177,174.04,174.02,0.7]
[1752761897018,16.40169916,174.04,174.0,0.7]
[1752761897216,6.34879896,174.04,174.01,0.7]
[1752761897419,16.40169916,174.04,174.01,0.7]
[1752761897614,15.82873177,174.04,173.98,66.5729002]
[1752761897815,5.77583157,174.04,174.02,0.7]
[1752761898022,10.0829002,174.04,174.02,0.7]
[1752761898406,0.03,174.04,174.02,0.7]
[1752761898607,10.0829002,174.04,174.02,0.7]
[1752761899630,10.62586759,174.03,173.98,56.52]
[1752761899811,10.62586759,174.03,173.98,57.22]
[1752761899812,10.0529002,174.01,173.98,57.22]
[1752761900014,16.78468397,174.02,173.99,0.7]
[1752761900207,26.83758417,174.02,173.99,0.7]
[1752761900628,10.0529002,174.03,174.0,0.7]
[1752761900838,10.0529002,174.03,174.01,0.7]
[1752761901318,10.0529002,174.03,173.99,0.7]
[1752761901509,10.0529002,174.02,173.98,56.52]
[1752761901703,10.0529002,174.03,173.99,0.7]
[1752761901904,10.0829002,174.04,174.0,0.7]
[1752761902120,15.82875732,174.04,174.01,0.7]
[1752761902631,15.82875732,174.04,174.02,0.7]
[1752761902632,5.7758979,174.04,174.02,0.7]
[1752761902932,0.03,174.04,174.02,0.7]
[1752761903130,0.03,174.04,174.0,10.0529002]
[1752761903433,0.03,174.04,174.03,0.7]
[1752761904201,0.03,174.04,174.03,31.2]
[1752761906114,0.03,174.04,174.03,30.5]
[1752761906502,0.03,174.04,174.03,31.2]
[1752761907129,0.03,174.04,174.03,30.5]
[1752761908032,10.0829002,174.04,173.99,0.7]
[1752761908208,10.0529002,174.03,174.0,30.48]
[1752761908411,10.0529002,174.03,174.0,31.18]
[1752761908933,26.83758417,174.01,174.0,30.48]
[1752761909640,0.03,174.04,174.0,41.2329002]
[1752761909839,0.03,174.04,174.03,36.0529002]
[1752761910004,0.03,174.04,174.03,66.5329002]
[1752761910203,0.03,174.04,174.03,67.2329002]
[1752761910927,0.03,174.04,174.03,57.18]
[1752761911127,10.0829002,174.04,174.03,56.48]
[1752761911352,10.0829002,174.04,174.0,0.7]
[1752761911353,10.65586759,174.04,174.0,56.48]
[1752761911649,10.0529002,174.03,174.0,56.48]
[1752761911846,10.0529002,174.01,173.98,0.68]
[1752761912022,15.79981015,174.01,173.98,30.48]
[1752761912704,10.0529002,173.99,173.96,1e-08]
[1752761913029,10.0529002,173.97,173.96,1e-08]
[1752761913813,26.83758417,173.97,173.96,1e-08]
[1752761914029,33.19570166,173.97,173.96,1e-08]
[1752761914637,34.72050166,173.97,173.96,1e-08]
[1752761916335,16.78468397,173.96,173.92,0.06]
[1752761916547,26.83758417,173.93,173.92,1e-08]
[1752761916715,57.89055156,173.93,173.92,1e-08]
[1752761916920,58.50055156,173.93,173.92,1e-08]
[1752761917461,57.89055156,173.93,173.92,1e-08]
[1752761917811,58.50055156,173.93,173.92,1e-08]
[1752761918439,64.24999098,173.93,173.92,1e-08]
[1752761918648,33.15999098,173.93,173.92,1e-08]
[1752761919013,33.76999098,173.93,173.92,1e-08]
[1752761919748,33.15999098,173.93,173.92,1e-08]
[1752761920957,16.37530701,173.93,173.92,1e-08]
[1752761921854,6.32240681,173.93,173.92,1e-08]
[1752761922057,32.58702359,173.93,173.92,0.68000001]
[1752761922231,10.0529002,173.96,173.92,26.68000001]
[1752761922556,10.0529002,173.95,173.93,0.68]
[1752761922755,16.78468397,173.93,173.92,1e-08]
[1752761922936,26.83758417,173.93,173.92,1e-08]
[1752761923132,0.57296739,173.96,173.92,0.68000001]
[1752761923334,10.0529002,173.95,173.93,0.68]
[1752761923650,16.78468397,173.95,173.92,1e-08]
[1752761923850,10.0529002,173.94,173.92,1e-08]
[1752761924054,26.83758417,173.93,173.92,1e-08]
[1752761924436,32.58702359,173.93,173.92,1e-08]
[1752761924831,22.53412339,173.93,173.92,1e-08]
[1752761925036,15.80233962,173.93,173.92,1e-08]
[1752761926060,32.58702359,173.93,173.92,1e-08]
[1752761926638,15.80233962,173.93,173.92,1e-08]
[1752761927163,5.74943942,173.93,173.92,1e-08]
[1752761927463,10.0529002,173.95,173.92,0.68000001]
[1752761927662,6.32097866,173.98,173.92,0.68000001]
[1752761927957,10.0529002,173.94,173.93,26.0]
[1752761928332,10.0529002,173.95,173.93,26.68]
[1752761928660,15.80132832,173.97,173.94,0.68]
[1752761928864,10.0529002,173.98,173.95,0.68]
[1752761929164,10.62586759,173.98,173.95,0.68]
[1752761930041,16.37365737,173.98,173.95,0.68]
[1752761930652,10.0529002,173.98,173.96,0.68]
[1752761931163,10.0529002,173.97,173.94,26.68]
[1752761931668,10.0529002,173.97,173.94,26.0]
[1752761931853,10.0529002,173.98,173.95,0.68]
[1752761932163,10.0529002,173.98,173.96,0.68]
[1752761932537,10.0529002,173.98,173.97,0.68]
[1752761932737,10.0529002,174.0,173.97,0.68]
[1752761933163,15.8000433,174.0,173.97,0.68]
[1752761934059,10.0529002,173.99,173.97,0.68]
[1752761934471,15.80047436,173.99,173.97,0.68]
[1752761934862,10.62586759,173.98,173.96,30.46]
[1752761935171,10.0529002,173.97,173.96,30.46]
[1752761935541,10.0529002,173.97,173.94,26.68]
[1752761935749,10.62586759,173.98,173.95,0.68]
[1752761936270,10.0529002,173.98,173.95,0.68]
[1752761936782,10.0529002,173.98,173.96,0.68]
[1752761936948,10.0529002,173.99,173.94,26.0]
[1752761937268,10.0529002,173.97,173.94,26.68]
[1752761937469,10.0529002,173.98,173.94,26.68]
[1752761937658,5.74720421,174.0,173.95,0.68]
[1752761937859,0.60296739,174.04,173.98,26.0]
[1752761938056,10.65586759,174.04,173.99,0.68]
[1752761938365,10.0529002,174.03,174.0,0.68]
[1752761938575,10.0529002,174.03,173.98,30.46]
[1752761938576,10.0529002,174.03,174.01,0.68]
[1752761938957,10.0529002,174.03,173.98,0.68]
[1752761938958,10.62586759,174.02,173.98,0.68]
[1752761939148,10.0529002,174.0,173.99,26.0]
[1752761939475,10.0529002,174.01,173.99,26.68]
[1752761939768,5.74643903,174.03,174.0,0.68]
[1752761939970,15.79933923,174.03,174.0,0.68]
[1752761940178,15.79933923,174.03,174.01,0.68]
[1752761940685,27.41055156,174.02,173.97,30.46]
[1752761940850,27.41055156,174.02,173.98,26.0]
[1752761940851,10.0529002,174.01,173.98,26.0]
[1752761941051,15.79981099,174.01,173.98,26.0]
[1752761941375,15.79981099,174.01,173.98,26.68]
[1752761941753,15.79981099,174.01,173.99,0.68]
[1752761942089,15.79981099,174.01,173.98,26.0]
[1752761942258,15.79981099,174.01,173.98,26.68]
[1752761942458,10.0529002,174.0,173.98,26.68]
[1752761942751,10.0529002,174.0,173.98,26.0]
[1752761943182,15.80024863,174.0,173.98,26.0]
[1752761943382,5.74734843,174.0,173.98,26.68]
[1752761943689,10.62586759,174.03,173.99,0.68]
[1752761943849,15.79912459,174.03,174.0,0.68]
[1752761944050,10.62586759,174.02,173.98,26.0]
[1752761944255,10.62586759,174.02,173.98,26.68]
[1752761944673,10.0529002,174.01,173.98,26.68]
[1752761944867,27.41055156,174.02,173.98,26.68]
[1752761945076,16.37261891,174.02,173.99,0.68]
[1752761945263,5.74622288,174.03,174.0,31.12]
[1752761945454,15.79912308,174.03,174.01,0.68]
[1752761945987,5.74622288,174.03,174.01,0.68]
[1752761946277,15.79912308,174.03,174.01,0.68]
[1752761946486,15.79912308,174.03,174.0,30.44]
[1752761946696,10.0529002,174.02,174.0,31.12]
[1752761947004,10.0529002,174.02,174.0,30.44]
[1752761947160,26.83758417,174.02,174.0,30.44]
[1752761947360,16.78468397,174.02,174.0,56.44]
[1752761947560,16.78468397,174.02,174.01,0.68]
[1752761947858,22.53122026,174.02,174.01,0.68]
[1752761948060,32.58412046,174.02,174.0,26.0]
[1752761948688,27.41055156,174.01,173.98,30.44]
[1752761948883,27.41055156,174.01,173.98,0.68]
[1752761949181,27.41055156,174.01,173.99,0.68]
[1752761949480,5.74712643,174.0,173.99,0.68]
[1752761949660,5.74712643,174.0,173.98,26.0]
[1752761950078,5.74712643,174.0,173.98,26.68]
[1752761950284,10.0529002,173.99,173.98,26.0]
[1752761950578,5.74712643,174.0,173.98,26.68]
[1752761950579,15.80002663,174.0,173.98,26.68]
[1752761950878,22.5318104,174.0,173.99,0.68]
[1752761951055,22.5318104,174.0,173.98,26.0]
[1752761951260,22.5318104,174.0,173.98,26.68]
[1752761951679,22.5318104,174.0,173.98,26.0]
[1752761952065,32.5847106,174.0,173.98,26.0]
[1752761953477,27.41055156,173.99,173.96,31.12]
[1752761953657,5.7477871,173.98,173.96,30.44]
[1752761953860,16.78468397,173.97,173.95,26.0]
[1752761954057,26.83758417,173.97,173.96,26.0]
[1752761954256,16.78468397,173.97,173.96,26.0]
[1752761954485,5.7477871,173.98,173.96,26.0]
[1752761954673,5.7477871,173.98,173.96,26.68]
[1752761955995,5.7477871,173.98,173.96,0.68]
[1752761956168,5.7477871,173.98,173.96,26.0]
[1752761956375,15.8006873,173.98,173.96,26.0]
[1752761956700,27.41055156,173.97,173.93,56.42]
[1752761956861,10.0529002,173.96,173.93,56.42]
[1752761957054,26.83758417,173.95,173.93,30.42]
[1752761957283,16.78468397,173.93,173.92,1e-08]
[1752761957595,5.74943942,173.93,173.92,1e-08]
[1752761958181,32.58702359,173.93,173.92,1e-08]
[1752761958360,33.19702359,173.93,173.92,1e-08]
[1752761958564,32.58702359,173.93,173.92,1e-08]
[1752761960103,33.19702359,173.93,173.92,1e-08]
[1752761960592,33.76999098,173.93,173.92,1e-08]
[1752761961275,33.15999098,173.93,173.92,1e-08]
[1752761961484,63.57999098,173.93,173.92,1e-08]
[1752761961687,64.18999098,173.93,173.92,1e-08]
[1752761963081,90.18999098,173.93,173.92,1e-08]
[1752761964189,7.8151,173.89,173.78,1e-08]
[1752761964373,52.78468397,173.84,173.78,1e-08]
[1752761964576,52.83758417,173.79,173.78,1e-08]
[1752761964795,42.78468397,173.79,173.78,1e-08]
[1752761965001,57.91758417,173.79,173.78,1e-08]
[1752761965298,47.20468397,173.79,173.78,1e-08]
[1752761965509,10.0529002,173.79,173.78,1e-08]
[1752761965688,11.28586759,173.79,173.78,1e-08]
[1752761966002,58.49055156,173.79,173.78,1e-08]
[1752761966201,64.24462256,173.79,173.78,1e-08]
[1752761966403,54.19172236,173.79,173.78,1e-08]
[1752761966616,64.24462256,173.79,173.78,1e-08]
[1752761967103,33.82462256,173.79,173.78,1e-08]
[1752761967404,63.58462256,173.79,173.78,1e-08]
[1752761968001,64.24462256,173.79,173.78,1e-08]
[1752761969111,24.46078397,173.78,173.68,0.68]
[1752761969408,16.78468397,173.68,173.63,0.68]
[1752761969605,10.0529002,173.64,173.63,0.68]
[1752761969815,10.0529002,173.64,173.6,0.68]
[1752761969993,16.78468397,173.66,173.61,0.68]
[1752761970180,16.78468397,173.66,173.61,26.68]
[1752761970181,10.0529002,173.64,173.61,26.68]
[1752761970506,10.0529002,173.62,173.58,0.68]
[1752761970708,0.66,173.64,173.58,0.68]
[1752761970709,10.0529002,173.6,173.58,0.68]
[1752761970905,10.0529002,173.59,173.58,0.68]
[1752761971210,10.0529002,173.59,173.55,31.1]
[1752761971406,10.0529002,173.57,173.56,0.68]
[1752761971780,22.97818397,173.56,173.46,0.68]
[1752761972014,10.0529002,173.48,173.46,0.68]
[1752761972202,5.76357834,173.51,173.46,0.68]
[1752761972515,10.0529002,173.47,173.42,0.68]
[1752761972683,18.02765136,173.5,173.41,17.278618]
[1752761972684,10.0529002,173.44,173.41,17.278618]
[1752761972886,10.0529002,173.45,173.42,0.68]
[1752761973187,10.0529002,173.45,173.44,26.0]
[1752761973395,10.0529002,173.45,173.41,0.68]
[1752761973605,10.0529002,173.43,173.41,0.68]
[1752761973794,0.57296739,173.45,173.42,26.68]
[1752761974008,10.0529002,173.46,173.43,26.68]
[1752761974201,10.0529002,173.46,173.42,26.0]
[1752761974202,6.33671853,173.5,173.45,26.0]
[1752761974419,10.0529002,173.52,173.46,36.7329002]
[1752761974620,10.0529002,173.54,173.48,10.0529002]
[1752761974811,0.67,173.58,173.43,36.22593773]
[1752761974812,5.76036866,173.6,173.53,26.0]
[1752761975014,0.57296739,173.6,173.54,10.7329002]
[1752761975210,10.0529002,173.59,173.53,36.0529002]
[1752761975413,10.0529002,173.59,173.55,0.68]
[1752761975608,10.0529002,173.59,173.56,0.68]
[1752761976603,16.78468397,173.6,173.54,0.68]
[1752761976824,10.62586759,173.59,173.54,0.68]
[1752761977130,30.98864344,173.57,173.54,0.68]
[1752761977309,14.20395947,173.55,173.54,26.0]
[1752761978225,5.76103237,173.58,173.54,26.0]
[1752761978413,14.20395947,173.55,173.54,26.0]
[1752761978939,16.78468397,173.6,173.54,40.88395947]
[1752761979095,16.78468397,173.6,173.52,30.5]
[1752761979096,14.77692686,173.61,173.55,40.88395947]
[1752761979301,17.35765136,173.6,173.56,0.68]
[1752761979500,31.56161083,173.6,173.57,0.68]
[1752761979720,14.20395947,173.61,173.58,0.68]
[1752761979925,0.67,173.65,173.59,0.68]
[1752761979926,14.77692686,173.62,173.59,0.68]
[1752761980149,17.35765136,173.64,173.6,0.68]
[1752761980430,14.20395947,173.65,173.61,0.68]
[1752761980629,14.20395947,173.66,173.62,0.68]
[1752761980933,14.20395947,173.66,173.63,0.68]
[1752761981225,0.57296739,173.67,173.63,0.68]
[1752761981431,30.0,173.64,173.63,26.0]
[1752761981634,44.20395947,173.64,173.63,26.0]
[1752761981926,44.20395947,173.64,173.59,0.68]
[1752761982127,14.20395947,173.6,173.59,26.0]
[1752761982540,16.78468397,173.64,173.59,26.68]
[1752761982719,0.57296739,173.63,173.59,26.0]
[1752761982919,14.20395947,173.6,173.57,30.52]
[1752761983244,14.20395947,173.61,173.59,26.0]
[1752761983413,14.20395947,173.6,173.59,26.0]
[1752761985836,16.78468397,173.61,173.59,26.0]
[1752761986013,14.20395947,173.62,173.6,0.68]
[1752761986216,16.78468397,173.65,173.61,0.68]
[1752761986411,14.20395947,173.64,173.61,0.68]
[1752761986615,16.78468397,173.65,173.62,0.68]
[1752761986820,14.77692686,173.68,173.63,14.88395947]
[1752761987119,16.78468397,173.68,173.64,0.68]
[1752761987441,16.78468397,173.68,173.65,0.68]
[1752761987641,16.78468397,173.7,173.66,0.68]
[1752761987948,6.32909656,173.73,173.67,0.68]
[1752761988254,0.57296739,173.74,173.68,14.20395947]
[1752761988416,14.20395947,173.72,173.67,0.68]
[1752761988614,14.20395947,173.71,173.67,0.68]
[1752761988817,14.20395947,173.72,173.67,0.68]
[1752761989024,17.35765136,173.73,173.68,0.68]
[1752761989371,0.57296739,173.75,173.68,0.68]
[1752761989644,0.7,173.78,173.71,14.20395947]
[1752761989645,0.60296739,173.78,173.71,14.20395947]
[1752761989855,14.20395947,173.75,173.71,31.2]
[1752761990051,0.57296739,173.76,173.71,31.2]
[1752761990222,14.20395947,173.75,173.72,0.68]
[1752761990829,14.20395947,173.76,173.73,0.68]
[1752761991030,14.20395947,173.77,173.74,0.68]
[1752761991550,14.20395947,173.75,173.72,0.68]
[1752761991732,14.20395947,173.74,173.73,26.0]
[1752761991930,16.78468397,173.73,173.66,0.68]
[1752761992137,14.20395947,173.71,173.7,26.0]
[1752761992622,22.54077752,173.73,173.7,26.68]
[1752761992831,14.20395947,173.72,173.7,26.0]
[1752761993035,0.57296739,173.73,173.7,26.0]
[1752761993237,30.98864344,173.71,173.65,0.68]
[1752761993528,1.24296739,173.72,173.68,26.0]
[1752761993734,14.20395947,173.69,173.68,26.0]
[1752761993950,0.57296739,173.7,173.65,57.2]
[1752761994222,0.57296739,173.7,173.66,0.68]
[1752761994442,22.54136626,173.72,173.67,0.68]
[1752761994646,14.20395947,173.7,173.67,0.68]
[1752761994948,30.98864344,173.73,173.68,0.68]
[1752761995162,14.20395947,173.75,173.69,45.40395947]
[1752761995447,14.20395947,173.73,173.69,31.2]
[1752761995826,14.20395947,173.73,173.7,0.68]
[1752761996149,14.20395947,173.74,173.7,0.68]
[1752761996342,16.78468397,173.74,173.7,0.68]
[1752761996736,14.20395947,173.73,173.7,0.68]
[1752761996938,14.20395947,173.74,173.7,0.68]
[1752761997145,14.77692686,173.74,173.71,0.68]
[1752761997768,14.20395947,173.76,173.72,26.68]
[1752761998661,14.20395947,173.76,173.73,31.18]
[1752761998839,20.53168009,173.77,173.73,31.18]
[1752761999250,14.20395947,173.76,173.73,31.18]
[1752761999567,19.95903336,173.76,173.73,30.5]
[1752761999742,14.20395947,173.76,173.73,30.5]
[1752761999951,14.20395947,173.76,173.73,31.18]
[1752762000254,14.20395947,173.77,173.74,0.68]
[1752762000562,14.20395947,173.75,173.73,30.5]
[1752762000866,17.35765136,173.75,173.7,30.46]
[1752762001159,9.27760701,173.71,173.7,30.46]
[1752762001537,17.35765136,173.75,173.7,31.16]
[1752762001743,26.06229098,173.75,173.71,0.7]
[1752762001936,9.27760701,173.75,173.72,0.7]
[1752762002260,0.60296739,173.78,173.73,0.7]
[1752762002564,9.27760701,173.77,173.74,0.7]
[1752762002743,0.03,173.78,173.75,0.7]
[1752762002943,0.03,173.78,173.76,0.7]
[1752762003136,0.03,173.78,173.77,35.27760701]
[1752762003344,0.03,173.78,173.77,26.7]
[1752762003547,0.03,173.78,173.77,31.18]
[1752762003849,0.03,173.78,173.77,40.45760701]
[1752762004351,0.03,173.78,173.77,31.18]
[1752762004555,0.03,173.78,173.77,40.45760701]
[1752762005657,0.03,173.78,173.77,46.21234027]
[1752762005845,0.03,173.78,173.77,40.45760701]
[1752762006167,0.03,173.78,173.77,46.21234027]
[1752762006666,0.03,173.78,173.77,69.37682424]
[1752762006963,9.27760701,173.85,173.8,26.0]
[1752762007156,9.27760701,173.84,173.81,26.0]
[1752762007532,15.02982909,173.85,173.83,26.0]
[1752762007768,9.27760701,173.85,173.83,26.0]
[1752762007956,23.1091689,173.87,173.83,26.0]
[1752762008133,9.27760701,173.87,173.84,0.7]
[1752762008341,9.27760701,173.87,173.83,30.44]
[1752762008850,15.02836898,173.89,173.84,0.7]
[1752762009056,6.32347324,173.9,173.85,0.7]
[1752762009235,15.60108025,173.9,173.86,30.44]
[1752762009442,6.32317774,173.91,173.86,31.14]
[1752762009659,9.8505744,173.91,173.87,0.7]
[1752762009868,5.74917477,173.94,173.89,26.0]
[1752762010041,15.02678178,173.94,173.89,30.44]
[1752762010241,15.02678178,173.94,173.9,0.7]
[1752762010664,9.27760701,173.93,173.89,30.44]
[1752762010847,9.27760701,173.92,173.89,30.44]
[1752762011041,26.06229098,173.93,173.89,30.44]
[1752762011366,5.75010062,173.91,173.9,26.0]
[1752762011584,15.02742926,173.92,173.9,26.0]
[1752762011957,31.8118094,173.93,173.9,26.0]
[1752762012362,9.27760701,173.92,173.9,26.0]
[1752762012559,31.8118094,173.93,173.9,26.0]
[1752762013199,15.02676254,173.94,173.89,30.44]
[1752762013364,5.74915553,173.94,173.9,0.7]
[1752762013709,9.27760701,173.94,173.89,30.44]
[1752762013874,9.8505744,173.94,173.89,30.44]
[1752762014079,9.8505744,173.94,173.88,9.97760701]
[1752762014080,9.27760701,173.91,173.87,56.46]
[1752762014398,9.27760701,173.88,173.82,0.7]
[1752762014701,9.27760701,173.83,173.79,0.7]
[1752762014865,9.27760701,173.83,173.81,30.48]
[1752762015064,9.27760701,173.82,173.79,30.48]
[1752762015403,9.27760701,173.82,173.81,26.0]
[1752762015570,15.03068616,173.82,173.79,30.48]
[1752762015882,15.03068616,173.82,173.81,26.0]
[1752762016470,15.73068616,173.82,173.76,0.7]
[1752762016792,9.27760701,173.8,173.77,30.5]
[1752762016974,9.27760701,173.81,173.77,31.2]
[1752762017169,9.27760701,173.8,173.77,30.5]
[1752762017359,9.27760701,173.83,173.78,0.7]
[1752762017563,9.27760701,173.83,173.8,26.0]
[1752762017865,9.27760701,173.83,173.8,57.2]
[1752762018081,17.35765136,173.87,173.81,0.7]
[1752762018282,0.57296739,173.89,173.81,0.7]
[1752762018474,15.02803829,173.9,173.83,26.0]
[1752762018672,5.75043128,173.9,173.85,9.27760701]
[1752762019071,15.02803829,173.9,173.85,0.7]
[1752762019370,5.75016457,173.91,173.86,9.97760701]
[1752762019560,15.02712761,173.93,173.88,9.27760701]
[1752762019761,15.02712761,173.93,173.88,0.7]
[1752762020289,9.27760701,173.91,173.88,26.0]
[1752762020487,27.33525837,173.92,173.88,26.0]
[1752762020693,9.97760701,173.91,173.88,26.0]
[1752762021080,14.15078877,173.91,173.88,26.0]
[1752762021584,20.60118434,173.91,173.88,26.0]
[1752762021790,5.75039557,173.91,173.88,26.0]
[1752762022177,19.90118434,173.91,173.88,26.0]
[1752762022676,5.75039557,173.91,173.88,26.0]
[1752762022988,19.90118434,173.91,173.88,26.0]
[1752762023388,20.60118434,173.91,173.88,26.0]
[1752762023587,5.75039557,173.91,173.88,26.0]
[1752762023790,19.90118434,173.91,173.88,26.0]
[1752762023993,19.90118434,173.91,173.87,30.58]